bitfinex/quotes_ETHUSD_20260202
["timestamp","ask_amount","ask_price","bid_price","bid_amount"]
[1770024139227,13.97350782,2259.5,2257.7,15.0919619]
[1770024139431,0.0011,2258.8,2257.9,13.98465396]
[1770024140510,0.0011,2258.8,2258.1,13.98465396]
[1770024143136,0.0011,2258.8,2258.0,0.929]
[1770024143340,0.0011,2258.8,2257.8,15.49385015]
[1770024143341,0.0011,2258.8,2257.8,13.98465396]
[1770024143549,0.0011,2258.8,2257.5,15.09202961]
[1770024143842,0.0011,2258.8,2257.6,13.98465396]
[1770024145052,0.2,2258.1,2257.6,13.98465396]
[1770024146040,0.12661246,2258.1,2257.6,13.98465396]
[1770024146932,0.0011,2258.8,2257.6,13.98465396]
[1770024149217,13.87220782,2258.8,2257.3,14.91365396]
[1770024149415,1.38722078,2258.7,2257.4,1.60212189]
[1770024149956,15.2583286,2258.7,2257.4,1.60212189]
[1770024150248,15.2583286,2258.7,2257.3,14.91365396]
[1770024150434,1.38722078,2258.7,2257.3,16.02116275]
[1770024150641,0.0011,2258.8,2257.5,15.0920443]
[1770024150839,0.0011,2258.8,2257.7,13.98465396]
[1770024152641,0.0011,2258.8,2257.8,0.001]
[1770024153045,0.0011,2258.8,2257.8,13.98565396]
[1770024156250,13.87220782,2258.8,2257.8,0.001]
[1770024156457,1.38722078,2258.7,2257.8,0.001]
[1770024156952,15.2583286,2258.7,2257.8,0.001]
[1770024157246,15.2583286,2258.7,2256.8,4.43099061]
[1770024157247,15.2583286,2258.7,2257.2,13.98465396]
[1770024157446,15.2583286,2258.7,2257.4,13.98465396]
[1770024157447,0.95328481,2258.6,2257.4,13.98465396]
[1770024157651,1.38722078,2258.7,2257.4,13.98465396]
[1770024157850,0.23173208,2258.6,2257.4,13.98465396]
[1770024158152,0.23173208,2258.6,2257.4,13.98385396]
[1770024161038,13.74018288,2258.6,2257.4,13.98385396]
[1770024161245,0.95502572,2258.5,2257.4,13.98385396]
[1770024161451,0.95502572,2258.5,2256.9,13.27356948]
[1770024161452,13.5084508,2258.5,2256.9,13.27356948]
[1770024161751,2.36733759,2258.4,2257.1,13.27356948]
[1770024161952,14.4374508,2258.5,2257.1,13.27356948]
[1770024162251,14.46374127,2258.4,2257.1,13.27356948]
[1770024162451,14.46374127,2258.3,2257.1,13.27356948]
[1770024162649,14.46380557,2258.2,2256.8,13.27356948]
[1770024162850,15.91027029,2258.1,2256.7,0.93]
[1770024163029,14.46388973,2258.0,2256.7,0.93]
[1770024163229,0.95543893,2257.9,2256.7,0.93]
[1770024163547,1.44638056,2258.1,2256.7,15.31138134]
[1770024163731,0.9547396,2258.0,2256.7,14.20356948]
[1770024163933,13.74856282,2257.9,2256.8,14.69392643]
[1770024164234,13.74856282,2257.9,2256.8,13.27356948]
[1770024164546,1.16911202,2257.9,2256.7,14.38237291]
[1770024164743,1.16911202,2257.9,2256.7,13.27456948]
[1770024165090,14.67756282,2257.9,2256.7,0.001]
[1770024165362,13.5084508,2257.7,2256.7,0.001]
[1770024165526,1.11279701,2257.6,2256.7,13.27456948]
[1770024165855,0.24011202,2257.9,2257.0,0.001]
[1770024165856,0.929,2257.8,2257.0,0.001]
[1770024166949,14.4374508,2257.8,2257.0,0.001]
[1770024167153,0.929,2257.8,2257.0,0.001]
[1770024167524,0.24011202,2257.9,2257.0,13.27456948]
[1770024167739,0.929,2258.1,2257.0,13.27456948]
[1770024168134,14.4374508,2258.4,2257.0,13.27456948]
[1770024168352,0.95281062,2258.3,2257.0,13.27456948]
[1770024168664,0.929,2258.4,2257.0,13.27456948]
[1770024168849,0.0011,2258.5,2257.2,12.72271587]
[1770024169178,0.0011,2258.5,2257.4,12.72271587]
[1770024171633,0.0011,2258.5,2257.4,13.8301758]
[1770024172556,0.0011,2258.5,2257.4,14.46373999]
[1770024173066,0.0011,2258.5,2257.4,13.8301758]
[1770024173867,0.0011,2258.5,2257.4,12.72271587]
[1770024174164,0.0011,2258.5,2257.6,12.72271587]
[1770024175479,0.0011,2258.5,2257.3,1.10751773]
[1770024175480,13.93551862,2258.5,2257.3,12.72271587]
[1770024175879,14.88813325,2258.4,2257.1,0.929]
[1770024176102,14.88813325,2258.4,2257.0,12.72371587]
[1770024176103,13.93441862,2258.4,2257.0,12.72371587]
[1770024176700,13.93441862,2258.4,2257.1,12.72271587]
[1770024176978,1.39355186,2258.3,2257.2,13.99508746]
[1770024177180,0.0011,2258.5,2257.2,13.99508746]
[1770024177384,0.95385371,2258.4,2257.2,13.99508746]
[1770024177581,0.0011,2258.5,2257.2,13.99508746]
[1770024177785,0.0011,2258.5,2257.4,12.72271587]
[1770024179584,0.0011,2258.5,2257.6,12.72271587]
[1770024180569,0.0011,2258.5,2257.6,0.001]
[1770024180767,0.0011,2258.3,2257.6,0.001]
[1770024181169,0.0011,2258.3,2257.6,0.0002]
[1770024181394,14.86451862,2258.3,2257.6,0.0002]
[1770024181555,16.37497054,2258.2,2257.6,0.0002]
[1770024181755,14.88851868,2258.1,2257.6,0.0002]
[1770024182008,14.88851868,2258.0,2257.6,0.0002]
[1770024182167,14.88851868,2257.9,2257.0,0.001]
[1770024182488,15.13058122,2257.7,2256.5,0.001]
[1770024182660,13.93441862,2257.5,2256.5,0.001]
[1770024182855,1.1961626,2257.3,2255.7,12.72271587]
[1770024183072,2.54259322,2257.4,2255.9,12.72271587]
[1770024183073,1.88310006,2257.2,2255.9,12.72271587]
[1770024183274,0.929,2257.2,2255.9,12.72271587]
[1770024183703,0.95356852,2257.1,2255.9,12.72271587]
[1770024183904,1.48645186,2257.0,2255.9,12.72271587]
[1770024184604,1.48645186,2257.0,2255.5,0.001]
[1770024184605,15.13058122,2256.8,2255.5,0.001]
[1770024184906,14.88753245,2256.7,2255.5,0.001]
[1770024185109,13.93441862,2256.5,2255.5,0.001]
[1770024185405,0.929,2256.4,2255.5,0.001]
[1770024185719,0.929,2256.4,2255.3,0.001]
[1770024185720,13.93441862,2256.2,2255.3,0.001]
[1770024186017,0.929,2256.1,2255.3,0.001]
[1770024188129,13.96962325,2256.1,2255.3,0.001]
[1770024188275,13.96962325,2256.1,2255.0,0.0018]
[1770024188936,0.929,2256.1,2255.0,0.0018]
[1770024189622,13.04062325,2256.0,2254.3,13.70944416]
[1770024189918,13.04062325,2256.0,2254.4,13.70764416]
[1770024191602,13.04062325,2255.9,2254.3,0.0018]
[1770024192212,13.04062325,2255.4,2254.3,0.0018]
[1770024192400,13.04062325,2255.2,2253.3,13.70764416]
[1770024192602,13.04062325,2255.0,2253.4,1.37076442]
[1770024192807,10.74159343,2255.1,2253.0,15.429]
[1770024192808,0.2335703,2254.9,2253.0,15.429]
[1770024193008,13.04062325,2254.8,2253.3,13.70764416]
[1770024193206,10.74159343,2255.1,2253.3,13.70764416]
[1770024193207,0.1024,2255.0,2253.3,13.70764416]
[1770024193408,13.04062325,2254.9,2253.3,13.70764416]
[1770024193721,1.39696233,2255.1,2252.9,1.36399765]
[1770024194022,13.04062325,2255.0,2253.1,13.70764416]
[1770024194193,10.74159343,2255.1,2253.1,16.52840858]
[1770024194194,13.04062325,2254.8,2253.1,16.52840858]
[1770024194398,0.2335703,2254.9,2252.6,13.70764416]
[1770024194399,13.04062325,2254.6,2252.6,13.70764416]
[1770024194733,13.96962325,2254.5,2252.7,13.70764416]
[1770024195025,13.04062325,2254.3,2252.7,13.70764416]
[1770024195405,13.27419355,2254.2,2252.7,13.70764416]
[1770024195603,13.27419355,2254.2,2252.5,14.5]
[1770024195806,1.32741936,2254.1,2253.4,0.001]
[1770024196005,0.1024,2254.4,2253.4,0.001]
[1770024196922,0.929,2254.5,2253.4,0.001]
[1770024197840,0.929,2254.5,2253.4,13.70864416]
[1770024198599,13.04172325,2255.9,2253.4,14.81806006]
[1770024198799,13.04172325,2255.9,2253.4,15.37722294]
[1770024199026,3.25034568,2255.8,2253.8,13.70764416]
[1770024199330,3.25034568,2255.8,2254.0,13.70764416]
[1770024199502,3.25034568,2255.8,2254.0,14.63764416]
[1770024200113,3.25034568,2255.8,2254.2,13.70764416]
[1770024200500,0.93,2255.8,2254.2,13.70764416]
[1770024201103,0.93,2255.8,2254.2,14.81667654]
[1770024201638,0.93,2255.8,2254.2,13.70764416]
[1770024201839,0.93,2255.8,2254.3,14.5]
[1770024202140,0.93,2255.8,2254.2,13.70764416]
[1770024202312,0.93,2255.8,2254.4,13.70764416]
[1770024202516,0.1024,2255.7,2254.4,13.70764416]
[1770024202703,0.1024,2255.7,2253.8,13.70764416]
[1770024202906,0.2335703,2255.6,2253.8,14.63764416]
[1770024203231,0.1024,2255.7,2254.0,13.70764416]
[1770024203413,0.1024,2255.7,2253.9,14.5]
[1770024203414,0.1024,2255.7,2254.2,13.70764416]
[1770024204620,13.14302325,2255.7,2254.2,13.70764416]
[1770024204931,0.2335703,2255.6,2254.2,13.70764416]
[1770024205515,13.14302325,2255.7,2254.2,13.70764416]
[1770024205831,0.93,2255.8,2254.2,13.70764416]
[1770024206046,0.93,2255.8,2254.4,13.70764416]
[1770024207106,0.0011,2255.9,2254.6,13.70764416]
[1770024208639,0.0011,2255.6,2254.6,14.81648786]
[1770024209027,0.0011,2255.6,2254.6,13.70764416]
[1770024209542,0.0011,2255.6,2254.6,14.81648129]
[1770024209753,0.0011,2255.6,2254.8,13.70764416]
[1770024210918,0.0011,2255.6,2254.8,28.20764416]
[1770024211137,0.0011,2255.6,2254.7,2.01820116]
[1770024211343,0.0011,2255.6,2254.5,14.63764416]
[1770024211544,0.0011,2255.6,2254.5,29.13764416]
[1770024211844,0.0011,2255.6,2254.6,13.70764416]
[1770024214646,0.0011,2255.6,2254.6,14.81648326]
[1770024215225,0.0011,2255.6,2254.8,13.70764416]
[1770024215517,0.0011,2255.6,2254.9,16.52840858]
[1770024217752,0.0011,2255.8,2255.0,12.95863266]
[1770024217930,0.0011,2255.8,2255.2,12.95863266]
[1770024222558,0.0011,2255.6,2255.2,12.95863266]
[1770024223525,0.0011,2255.6,2255.1,0.931]
[1770024225648,0.0011,2255.6,2255.1,13.88963266]
[1770024225822,0.0011,2255.6,2255.2,14.34759593]
[1770024228559,0.0011,2255.8,2255.2,14.34759593]
[1770024228766,0.0011,2256.1,2255.3,13.04024401]
[1770024229458,0.0011,2256.1,2255.5,13.04024401]
[1770024229628,0.0011,2256.1,2255.6,13.97024401]
[1770024229825,0.0011,2256.1,2255.7,1.3970244]
[1770024232359,0.0011,2256.1,2255.7,14.43726841]
[1770024233135,0.0003,2256.1,2255.7,14.43726841]
[1770024235767,0.0003,2256.1,2255.9,0.001]
[1770024237448,0.0003,2256.1,2255.9,13.04124401]
[1770024237765,0.0011,2256.8,2256.0,15.27436841]
[1770024238076,1.1961626,2257.6,2256.1,13.63617998]
[1770024238279,0.95465711,2257.5,2256.2,1.10805779]
[1770024238581,14.19274797,2258.0,2256.3,13.04024401]
[1770024238783,0.95395585,2257.9,2256.5,13.04024401]
[1770024239076,0.95395585,2257.9,2256.4,0.93]
[1770024239077,2.34900997,2257.8,2256.6,14.43726841]
[1770024239380,1.39505412,2257.8,2256.6,14.43726841]
[1770024240353,0.36211476,2258.0,2256.6,15.54511479]
[1770024240563,0.36211476,2258.0,2256.6,14.99643129]
[1770024240882,0.36211476,2258.0,2256.6,15.54512539]
[1770024241267,12.63447061,2258.2,2256.7,13.04024401]
[1770024241482,12.63447061,2258.2,2256.5,1.10787378]
[1770024241483,12.63447061,2258.0,2256.0,14.34436841]
[1770024241785,12.63447061,2258.0,2256.1,15.40378085]
[1770024241786,13.83063321,2257.8,2256.1,15.40378085]
[1770024241954,12.63447061,2257.6,2256.1,15.40378085]
[1770024242153,1.58849316,2258.0,2256.1,15.40378085]
[1770024242154,0.95201579,2257.5,2256.1,15.40378085]
[1770024242361,12.63447061,2257.5,2256.1,15.40378085]
[1770024245591,1.1961626,2257.9,2256.2,13.04024401]
[1770024245592,12.63447061,2257.8,2256.2,13.04024401]
[1770024245758,2.3350585,2257.7,2256.4,13.04024401]
[1770024245958,12.63447061,2257.5,2256.3,1.65118873]
[1770024246183,12.57573884,2257.5,2256.1,13.96924401]
[1770024247889,1.38306332,2257.7,2256.1,15.07734769]
[1770024248057,0.95206906,2257.6,2256.1,13.96924401]
[1770024248383,14.5424974,2257.7,2256.1,13.96924401]
[1770024248578,0.95205675,2257.6,2256.1,13.96924401]
[1770024248785,14.5424974,2257.7,2256.3,13.02405491]
[1770024248786,1.54945542,2257.5,2256.3,13.02405491]
[1770024249094,0.0011,2257.3,2256.3,14.13206013]
[1770024249299,0.0011,2257.3,2256.3,13.61999088]
[1770024249460,0.0011,2257.3,2256.3,13.02405491]
[1770024249972,0.0011,2257.3,2256.3,14.72799921]
[1770024250172,0.0011,2257.3,2256.3,13.02405491]
[1770024250375,0.0011,2257.3,2256.5,13.02405491]
[1770024252515,0.93,2258.3,2256.7,13.02405491]
[1770024252714,0.93,2258.3,2256.8,14.47271922]
[1770024253015,0.93,2258.3,2256.8,15.08621543]
[1770024253313,0.93,2258.3,2256.8,14.47271922]
[1770024253617,0.93,2258.3,2257.0,13.02405491]
[1770024254014,0.93,2258.3,2257.0,13.51041756]
[1770024254999,14.08943408,2258.3,2256.9,1.55804831]
[1770024255197,14.08943408,2258.3,2256.7,13.02405491]
[1770024255198,13.15943408,2258.1,2256.7,13.02405491]
[1770024255407,0.93,2258.3,2256.9,13.02405491]
[1770024255607,14.1107779,2258.2,2256.9,13.02405491]
[1770024255796,0.93,2258.3,2256.9,13.02405491]
[1770024256001,0.93,2258.3,2256.9,13.63755112]
[1770024256193,0.93,2258.3,2257.1,13.02405491]
[1770024256393,0.0011,2258.5,2257.1,13.95305491]
[1770024256602,0.0011,2258.5,2257.1,14.44893422]
[1770024257123,0.0011,2258.5,2257.3,13.02405491]
[1770024257325,0.37985446,2259.2,2258.1,13.02405491]
[1770024257501,0.37985446,2259.2,2258.2,2.23677033]
[1770024257700,0.37985446,2259.2,2258.3,13.02405491]
[1770024259992,0.37985446,2259.2,2258.2,15.26082524]
[1770024261321,0.37985446,2259.2,2258.2,16.36790108]
[1770024261624,0.37985446,2259.2,2258.3,14.80711628]
[1770024262024,0.0011,2259.0,2258.3,14.80711628]
[1770024262396,0.0011,2259.0,2257.9,4.96253223]
[1770024262397,0.0011,2259.0,2257.9,13.02405491]
[1770024262597,0.0011,2259.0,2257.9,14.13124195]
[1770024263034,0.0011,2259.0,2258.2,14.13110876]
[1770024263259,0.0011,2259.0,2258.2,15.0601292]
[1770024263738,0.38095446,2259.2,2258.3,13.02405491]
[1770024263904,0.0011,2259.2,2258.4,1.50601292]
[1770024264113,0.0011,2259.2,2258.4,14.53006783]
[1770024265430,0.0011,2259.2,2258.4,15.63702902]
[1770024265627,0.0016,2259.7,2258.6,13.02405491]
[1770024265930,0.0016,2259.7,2258.6,13.49633658]
[1770024266231,0.0016,2259.7,2258.8,13.02405491]
[1770024271912,0.0016,2259.7,2258.7,3.27649209]
[1770024272240,0.0016,2259.7,2258.8,13.02405491]
[1770024273419,0.0016,2259.7,2258.7,0.928]
[1770024273742,0.0016,2259.7,2258.7,13.95205491]
[1770024273947,0.0016,2259.7,2258.8,14.4192604]
[1770024275013,0.0016,2259.7,2258.7,0.928]
[1770024275214,0.0016,2259.7,2258.7,15.05886477]
[1770024275409,0.0016,2259.7,2258.8,13.02405491]
[1770024275610,0.0011,2259.5,2258.8,13.66899088]
[1770024275837,0.0011,2259.5,2258.8,13.02405491]
[1770024276020,0.0011,2259.5,2258.9,14.57794632]
[1770024276506,0.0011,2259.5,2258.7,0.928]
[1770024277519,0.0011,2259.5,2258.7,13.95205491]
[1770024278243,0.0011,2259.5,2258.7,15.67331557]
[1770024279250,0.0011,2259.5,2258.7,14.5664848]
[1770024279423,0.0011,2259.5,2258.7,13.95205491]
[1770024279628,0.3011,2259.5,2258.7,0.928]
[1770024282644,0.3011,2259.5,2258.7,14.87790489]
[1770024283927,0.3011,2259.5,2258.7,15.98473348]
[1770024284647,0.3011,2259.5,2258.7,14.87790489]
[1770024286134,0.3011,2259.5,2258.7,15.98473104]
[1770024286334,0.3011,2259.5,2258.9,13.94990489]
[1770024287027,0.3011,2259.5,2258.8,2.0412144]
[1770024288028,0.3011,2259.5,2258.7,0.928]
[1770024288643,0.3011,2259.5,2258.8,0.61442989]
[1770024288823,0.3011,2259.5,2258.8,1.72120641]
[1770024289028,0.3011,2259.5,2258.8,13.88370219]
[1770024289229,0.3011,2259.5,2258.7,1.40806501]
[1770024289442,0.3011,2259.5,2258.9,0.001]
[1770024289646,13.92760858,2259.5,2258.9,0.001]
[1770024289826,0.0011,2259.3,2258.9,0.001]
[1770024290034,0.0011,2259.3,2258.7,0.928]
[1770024290631,0.0011,2259.3,2258.5,0.001]
[1770024292254,0.0011,2259.3,2258.6,0.64493597]
[1770024292553,0.0011,2259.3,2258.5,0.001]
[1770024292865,0.0011,2259.3,2258.5,2.45962966]
[1770024293359,0.0011,2259.3,2258.5,2.45882966]
[1770024294836,0.0011,2259.3,2258.5,3.56575215]
[1770024295038,0.0016,2259.7,2258.8,13.2692723]
[1770024295270,0.0016,2259.7,2258.9,0.51981501]
[1770024295459,0.0016,2259.7,2259.0,2.43284532]
[1770024295958,0.0016,2259.7,2259.0,15.70211762]
[1770024296165,0.0016,2259.7,2259.0,17.32857604]
[1770024296537,0.0016,2259.7,2259.0,17.94300593]
[1770024296740,0.0016,2259.7,2259.1,13.2692723]
[1770024296933,0.0016,2259.7,2259.2,1.79430059]
[1770024297265,0.0016,2259.7,2259.0,2.02466033]
[1770024297437,0.0016,2259.7,2258.7,13.2692723]
[1770024297633,0.0016,2259.7,2259.0,1.1066829]
[1770024297973,0.0016,2259.7,2258.9,14.37598226]
[1770024298139,0.09020693,2260.3,2259.7,13.2692723]
[1770024298337,0.09020693,2260.3,2259.1,0.928]
[1770024298338,13.62650858,2260.6,2259.5,1.5962693]
[1770024298548,1.58849316,2260.9,2259.1,14.37590697]
[1770024298549,13.62650858,2260.4,2259.4,0.928]
[1770024299872,1.1961626,2260.9,2259.4,0.928]
[1770024299873,13.62650858,2260.8,2259.4,14.1972723]
[1770024300059,0.95521144,2260.7,2259.4,14.1972723]
[1770024300242,13.62650858,2260.8,2259.4,15.30374111]
[1770024300450,15.94432302,2260.7,2259.5,1.53037411]
[1770024300782,14.58167216,2260.6,2259.2,15.30383092]
[1770024301076,13.62650858,2260.6,2259.2,14.8655416]
[1770024301285,13.62570858,2260.6,2259.2,14.1972723]
[1770024301507,13.62570858,2260.6,2258.9,3.16743749]
[1770024301638,13.62650858,2260.1,2258.5,0.001]
[1770024301842,14.82267118,2259.9,2258.5,0.001]
[1770024302137,13.62650858,2259.7,2258.3,0.001]
[1770024302462,13.62650858,2259.5,2258.3,0.001]
[1770024302642,13.62650858,2259.3,2258.3,0.001]
[1770024302842,1.45814707,2259.2,2258.3,0.001]
[1770024303580,1.45814707,2259.2,2258.7,0.001]
[1770024303790,1.45814707,2259.2,2258.1,0.88574]
[1770024304143,15.08465565,2259.2,2258.5,0.001]
[1770024305051,15.08465565,2259.2,2257.8,0.0008]
[1770024305259,15.46060915,2259.1,2257.8,0.0008]
[1770024305462,13.62650858,2258.9,2257.8,0.0008]
[1770024305696,13.62650858,2258.9,2256.9,0.6682693]
[1770024305697,13.62650858,2258.7,2256.9,0.6682693]
[1770024305977,1.1961626,2258.9,2256.5,9.50431665]
[1770024305978,13.62650858,2258.2,2256.6,14.37710944]
[1770024306182,2.31694976,2258.1,2256.7,15.15013563]
[1770024306347,1.36265086,2258.1,2256.7,15.15013563]
[1770024306544,14.98915944,2258.1,2256.7,15.15013563]
[1770024307358,14.98915944,2258.1,2256.7,16.25793886]
[1770024307562,14.98915944,2258.1,2256.9,13.2692723]
[1770024307563,1.36265086,2258.1,2256.9,13.2692723]
[1770024307746,13.62650858,2258.5,2256.8,10.01191765]
[1770024307747,13.62650858,2258.5,2257.0,15.59739129]
[1770024307953,13.62650858,2258.5,2257.0,2.32811899]
[1770024308159,13.62650858,2258.5,2256.7,2.98867187]
[1770024308345,13.62650858,2258.5,2256.7,16.93694807]
[1770024308778,0.928,2258.6,2256.9,13.9490762]
[1770024309284,13.56024789,2258.5,2256.9,14.6173455]
[1770024309444,13.56024789,2258.5,2256.9,13.9490762]
[1770024309647,1.44882479,2258.4,2257.1,13.9490762]
[1770024309845,0.928,2258.6,2257.1,13.9490762]
[1770024310047,14.48824789,2258.6,2257.1,13.9490762]
[1770024310268,14.48824789,2258.6,2257.0,1.45374666]
[1770024310474,14.48824789,2258.6,2257.1,14.5]
[1770024310782,14.48824789,2258.6,2257.1,29.08846658]
[1770024310954,14.48824789,2258.6,2257.1,28.4490762]
[1770024312674,14.48824789,2258.6,2256.7,15.82913953]
[1770024312980,13.56024789,2258.4,2256.7,16.75813953]
[1770024313191,13.56024789,2258.2,2256.8,1.67581395]
[1770024313679,13.56024789,2258.2,2256.5,13.9490762]
[1770024313880,13.56024789,2258.2,2256.6,14.5]
[1770024314268,13.56024789,2258.2,2256.6,28.4490762]
[1770024314483,13.56024789,2258.2,2256.7,13.9490762]
[1770024315161,1.45086788,2258.3,2256.7,13.9490762]
[1770024315371,1.45086788,2258.3,2257.1,13.9490762]
[1770024315571,0.928,2258.6,2257.2,14.8780762]
[1770024316284,14.48824789,2258.6,2257.0,14.8780762]
[1770024316452,0.928,2258.6,2257.1,0.63939038]
[1770024316658,0.928,2258.6,2257.2,13.9490762]
[1770024317185,14.48824789,2258.6,2257.2,13.9490762]
[1770024317357,1.44882479,2258.5,2257.3,1.39490762]
[1770024317960,0.0011,2258.0,2257.3,1.39490762]
[1770024318885,0.0011,2258.0,2257.3,15.34398382]
[1770024319584,13.56134789,2258.0,2256.9,0.93]
[1770024319883,13.56134789,2258.0,2256.9,0.001]
[1770024320272,0.0011,2258.0,2256.9,0.001]
[1770024320478,0.0011,2258.0,2256.9,13.9500762]
[1770024320660,0.0011,2258.0,2257.0,1.39500762]
[1770024321413,13.56134789,2258.0,2256.9,0.001]
[1770024322258,13.56024789,2257.8,2256.6,0.001]
[1770024323400,0.929,2257.9,2256.6,13.9500762]
[1770024326406,0.929,2257.9,2256.6,15.98691999]
[1770024326698,0.929,2257.9,2256.6,14.8790762]
[1770024326901,0.929,2257.9,2256.7,15.54777264]
[1770024329095,0.929,2257.9,2256.9,13.9490762]
[1770024329428,0.0011,2258.0,2256.9,13.9490762]
[1770024329998,0.0011,2258.0,2257.0,14.5]
[1770024330197,0.0011,2258.0,2257.0,28.4490762]
[1770024330516,0.0011,2258.0,2257.1,16.79398382]
[1770024330718,0.0011,2258.0,2257.1,15.05668198]
[1770024330933,0.0011,2258.0,2257.3,13.9490762]
[1770024332405,0.0011,2258.0,2257.4,28.4490762]
[1770024332803,0.0011,2257.8,2257.4,28.4490762]
[1770024333007,0.0011,2257.8,2257.4,13.9490762]
[1770024333217,0.0011,2257.8,2257.5,1.39490762]
[1770024335504,0.0011,2258.2,2257.5,15.34398382]
[1770024335911,0.0011,2258.2,2257.2,0.929]
[1770024338232,0.95586775,2258.1,2257.1,0.001]
[1770024338539,14.16424391,2258.0,2257.1,0.001]
[1770024338718,0.95586775,2257.9,2256.9,0.001]
[1770024339320,0.95586775,2257.9,2256.9,13.30714236]
[1770024339644,2.4919084,2257.9,2257.1,13.30614236]
[1770024339840,0.95590813,2257.8,2257.1,13.30614236]
[1770024340017,1.1961626,2258.1,2257.1,13.30614236]
[1770024340216,0.95592318,2258.0,2257.1,13.30614236]
[1770024342247,0.0011,2258.2,2257.5,13.30614236]
[1770024345725,0.0011,2258.2,2257.3,14.5]
[1770024345931,0.0011,2258.2,2257.2,1.55658566]
[1770024346223,0.0011,2258.2,2257.3,1.5791728]
[1770024346844,0.0011,2258.2,2257.4,0.001]
[1770024347230,0.0011,2258.0,2257.4,0.001]
[1770024347944,0.0011,2258.0,2257.4,13.30714236]
[1770024349045,0.0011,2258.0,2257.4,0.001]
[1770024349840,0.0011,2258.0,2257.4,14.64863079]
[1770024351664,0.0011,2258.0,2257.4,13.87058212]
[1770024352024,0.0011,2258.0,2257.4,0.001]
[1770024352226,0.0011,2258.0,2257.1,0.93]
[1770024352443,0.95568531,2257.9,2257.1,0.001]
[1770024352634,0.95578969,2257.8,2257.1,0.001]
[1770024352947,13.68289357,2258.0,2257.1,0.001]
[1770024353251,2.44370994,2257.9,2257.1,0.001]
[1770024353449,0.95580432,2257.8,2257.1,0.001]
[1770024355550,1.1972626,2258.0,2257.1,0.001]
[1770024355869,0.95641638,2257.9,2257.1,13.87058212]
[1770024356153,0.0011,2258.0,2257.1,13.87058212]
[1770024356447,0.0011,2258.0,2257.2,1.38705821]
[1770024356448,0.95644059,2257.9,2257.2,1.38705821]
[1770024356653,0.0011,2258.0,2257.2,1.38705821]
[1770024356950,0.9564399,2257.9,2257.1,0.001]
[1770024357155,0.0011,2258.0,2257.1,13.87058212]
[1770024357359,0.95648563,2257.9,2257.1,13.87058212]
[1770024357567,0.0011,2258.0,2257.1,13.87058212]
[1770024357734,0.95647753,2257.9,2257.1,13.87058212]
[1770024358056,0.0011,2258.0,2257.2,1.38705821]
[1770024358264,0.95647376,2257.9,2257.2,1.38705821]
[1770024358446,0.0011,2258.0,2257.2,15.25664033]
[1770024358761,0.0011,2258.0,2257.2,15.21994619]
[1770024360436,0.0011,2258.0,2257.3,0.001]
[1770024360637,0.0011,2257.8,2257.3,1.52319462]
[1770024361131,0.0006,2258.0,2257.3,1.52319462]
[1770024361739,0.0006,2258.0,2257.3,0.001]
[1770024361740,0.95654125,2257.9,2257.3,0.001]
[1770024361966,0.0006,2258.0,2257.3,0.001]
[1770024362262,0.95656634,2257.9,2257.3,0.001]
[1770024362566,0.0006,2258.0,2257.3,0.001]
[1770024362863,0.95655997,2257.9,2257.3,0.001]
[1770024363063,0.0006,2258.0,2257.3,0.001]
[1770024363260,0.95655974,2257.9,2257.3,0.001]
[1770024363463,1.48845562,2258.0,2257.3,0.001]
[1770024363766,0.95656109,2257.9,2257.3,0.001]
[1770024363931,1.48845562,2258.0,2257.3,0.001]
[1770024363932,0.0006,2258.0,2257.3,13.87058212]
[1770024364135,0.0006,2258.0,2257.4,1.38705821]
[1770024364335,0.95651146,2257.9,2257.3,13.87058212]
[1770024364558,0.0006,2258.0,2257.3,13.87058212]
[1770024364764,0.95653902,2257.9,2257.3,0.001]
[1770024364950,0.0006,2258.0,2257.3,0.001]
[1770024365557,0.95652957,2257.9,2257.3,0.001]
[1770024365735,1.1961626,2258.6,2257.3,2.61359442]
[1770024365935,2.07604247,2259.1,2257.4,15.02582579]
[1770024366146,0.95611264,2259.0,2257.6,13.86958212]
[1770024366344,0.95611264,2259.0,2257.4,0.60607328]
[1770024366345,0.95611264,2258.9,2257.8,13.86958212]
[1770024366552,2.65430967,2259.2,2258.0,13.86958212]
[1770024366764,0.95544002,2259.1,2258.0,14.42193541]
[1770024366962,0.95544002,2259.0,2258.0,13.86958212]
[1770024367171,0.95544002,2258.9,2258.1,1.47985821]
[1770024367371,2.65430967,2259.2,2258.1,1.47985821]
[1770024367539,0.95490682,2259.1,2258.1,1.47985821]
[1770024367748,0.95490682,2259.0,2258.1,1.47985821]
[1770024367959,1.45814707,2259.2,2258.3,13.22293252]
[1770024368148,1.1961626,2259.6,2258.5,13.22293252]
[1770024368349,0.95467646,2259.5,2258.5,13.22293252]
[1770024368553,0.95467646,2259.4,2258.5,13.22293252]
[1770024368750,1.1961626,2259.8,2258.5,13.77528581]
[1770024368970,0.95377245,2259.7,2258.5,13.77528581]
[1770024369140,0.95377245,2259.6,2258.6,1.51615181]
[1770024369343,1.1961626,2259.9,2258.6,14.73908433]
[1770024369572,2.1251626,2260.2,2258.6,15.930828]
[1770024369779,0.9529246,2260.1,2258.7,14.41467619]
[1770024369945,0.9529246,2260.0,2258.9,13.22293252]
[1770024370281,0.929,2260.2,2259.1,13.22293252]
[1770024370575,0.0032,2260.3,2259.3,13.22293252]
[1770024370946,0.0032,2260.3,2259.4,0.55235329]
[1770024371147,0.0032,2260.3,2259.5,13.22293252]
[1770024372165,0.0032,2260.3,2259.5,14.88168793]
[1770024372382,0.0032,2260.3,2259.6,15.15369419]
[1770024372584,0.36809412,2261.2,2259.7,13.22293252]
[1770024372785,0.36809412,2261.2,2259.9,13.22293252]
[1770024373850,0.36809412,2261.2,2260.1,13.22293252]
[1770024374050,0.36809412,2261.2,2260.2,13.80489232]
[1770024374254,0.36809412,2261.2,2260.2,13.22293252]
[1770024374449,13.4317469,2261.2,2259.9,13.22293252]
[1770024375084,13.4317469,2261.2,2259.9,14.32916274]
[1770024375283,0.0011,2260.1,2259.9,13.22293252]
[1770024375489,13.4317469,2261.2,2259.9,13.22293252]
[1770024375701,1.34317469,2261.1,2259.9,13.22293252]
[1770024375918,14.40682747,2261.1,2259.7,0.63939038]
[1770024376214,0.0011,2260.3,2259.3,14.32946404]